Cogmind - Beta 16 @@@ ROGUE MODE // 2025.12.02 @ 16:52:41 Player: opdo Result: Destroyed by 1H-WC2(R) with Subdweller Machine Gun Performance ------------- Evolutions (0) 0 Regions Visited (3) 600 Robots Destroyed (29) 145 Value Destroyed (740) 740 Prototype IDs (0) 0 Alien Tech Used (0) 0 Bonus (0) 0 TOTAL SCORE: 1485 Bonus ------- None Cogmind --------- Core Integrity 0/250 Matter 275/300 Energy 85/125 System Corruption 0% Temperature Cool (28) Movement Treading (240) Ox1 Location -10/Subcaves Parts ------- > --- POWER (1) -------- Light Ion Engine > --- PROPULSION (2) --- Light Treads Light Treads > --- UTILITY (2) ------ Large Storage Unit Makeshift Kinetic Plating > --- WEAPON (2) ------- Beamcaster Subdweller Beam Cannon > --- INVENTORY (15) --- Light Treads Light Treads Light Treads Huge Storage Unit Large Matter Pod (150) Propulsion Shielding Makeshift Light Armor Plating Scrap Shield Subdweller Laser Battle Rifle Barrage Gun Rocket Launcher Mining Laser Makeshift Hammer Peak State ------------ > --- POWER ------------ Light Ion Engine > --- PROPULSION ------- Light Treads Light Treads > --- UTILITY ---------- Large Storage Unit Makeshift Kinetic Plating > --- WEAPON ----------- Beamcaster Rocket Launcher > --- INVENTORY -------- Light Treads Light Treads Light Treads Light Treads Wheel Huge Storage Unit Large Matter Pod Propulsion Shielding Subdweller Laser Subdweller Beam Cannon Heavy Assault Rifle Subdweller Machine Gun Mining Laser Makeshift Hammer [Rating: 17] Favorites ----------- Power Light Ion Engine Engine Light Ion Engine Power Core Light Nuclear Core Propulsion Light Treads Treads Light Treads Utility Large Storage Unit Device Structural Scanner Storage Large Storage Unit Processor Signal Interpreter Protection Propulsion Shielding Weapon Light Assault Rifle Energy Gun Beamcaster Energy Cannon Subdweller Beam Cannon Ballistic Gun Light Assault Rifle Launcher Rocket Launcher Special Weapon Mining Laser Impact Weapon Makeshift Hammer Build | -11 -10 -10 -10 ------- Run | Yrd Mat Min Sub Slots Evolved . | . . . . Power . | . . . . Propulsion . | . . . . Utility . | . . . . Weapon . | . . . . Parts Attached 29 | 6 3 7 13 Power 7 | 1 . 3 3 Engine 5 | 1 . 1 3 Core 2 | . . 2 . Reactor . | . . . . Propulsion 5 | 2 . 2 1 Treads 5 | 2 . 2 1 Leg . | . . . . Wheel . | . . . . Hover . | . . . . Flight . | . . . . Utility 8 | 1 2 2 3 Device 1 | . . . 1 Storage 2 | 1 1 . . Processor 1 | . 1 . . Hackware . | . . . . Protection 4 | . . 2 2 Artifact . | . . . . Weapon 9 | 2 1 . 6 Energy Gun 2 | . . . 2 Energy Cannon 1 | . . . 1 Ballistic Gun 3 | 2 . . 1 Ballistic Cannon . | . . . . Launcher 1 | . . . 1 Special Weapon 1 | . 1 . . Impact Weapon 1 | . . . 1 Slashing Weapon . | . . . . Piercing Weapon . | . . . . Special Melee Weapon . | . . . . Unidentified Prototypes . | . . . . Parts Lost 6 | . . 1 5 Power 3 | . . 1 2 Propulsion 1 | . . . 1 Utility 1 | . . . 1 Weapon 1 | . . . 1 Highest Loss Streak 2 | . . 1 2 To Critical Strikes . | . . . . Average Backups 13 | 1 11 14 14 Power 1 | . 1 1 . Propulsion 3 | . 1 3 4 Utility 3 | . 3 4 3 Weapon 5 | . 4 5 5 Tool/Special . | . . . . Unused Backups 18 | . 2 3 13 Power . | . . . . Propulsion 4 | . . . 4 Utility 5 | . 1 . 4 Weapon 9 | . 1 3 5 Tool/Special . | . . . . Average Slot Usage (%) 98 | . 98 99 96 Engine 11 | . 14 7 13 Core 2 | . . 6 . Treads 27 | . 28 28 27 Device 1 | . . . 4 Storage 14 | . 14 14 14 Processor 8 | . 12 12 . Protection 3 | . . 1 9 Energy Gun 2 | . . . 8 Ballistic Gun 22 | . 27 28 10 Launcher 1 | . . . 5 Peak Build Rating 17 | 6 8 10 17 Average Rating 9 | 5 7 9 12 On Entrance 5 | . 6 8 9 Avg Prop Armor Cover (%) . | . . . . Naked Turns . | . . . . Heaviest Build 39 | 11 26 29 39 Greatest Support 40 | 40 40 40 40 Greatest Overweight (x) 1 | . . . 1 Average Overweight (x) . | . . . . Largest Inventory Capacity 15 | 8 15 15 15 Average Capacity 14 | 7 13 15 15 Most Carried 15 | 5 15 15 15 Average Carried 13 | 1 11 14 14 Final Capacity 15 | 8 15 15 15 Final Carried 15 | 5 14 15 15 Class Distribution -------------------- 91% | Mutant 8% | Scavenger-Mutant Dominant Class ---------------- Mutant | -10/Materials Mutant | -10/Mines Mutant | -10/Subcaves Resources | -11 -10 -10 -10 ----------- Run | Yrd Mat Min Sub Matter Collected 1042 | 260 229 283 270 Remotely . | . . . . Salvage Created 1036 | 77 218 360 381 Parts 60 | 3 13 26 18 Haulers Intercepted 2 | . 2 . . Recyclers Shooed . | . . . . Parts Field Recycled . | . . . . Retrieved Matter . | . . . . Parts Self-Destructed 11 | . . . 11 Prevented . | . . . . Parts Restored . | . . . . Kills | -11 -10 -10 -10 ------- Run | Yrd Mat Min Sub Combat Hostiles Destroyed 22 | . 2 10 10 Melee 1 | . . 1 . Guns 16 | . 2 9 5 AOE 5 | . . . 5 Classes Destroyed 9 | 2 5 1 1 Worker 1 | . 1 . . Tunneler 1 | 1 . . . Hauler 2 | . 2 . . Recycler 2 | 1 . 1 . Operator 1 | . 1 . . Swarmer 6 | . 1 5 . Grunt 6 | . 1 4 1 Sentry 2 | . . 1 1 Subdweller 8 | . . . 8 Best Kill Streak 4 | 1 1 4 2 Combat Bots Only 3 | . 1 3 2 Max Kills in Single Turn 2 | 1 1 1 2 Gunslinging . | . . . . Exploded 2 | . . . 2 Melee 1 | . . 1 . Uniques/NPCs Destroyed . | . . . . Combat | -11 -10 -10 -10 -------- Run | Yrd Mat Min Sub Hostile Shots Fired 101 | . 3 59 39 Missed 25 | . . 14 11 Hits 76 | . 3 45 28 Projectile 76 | . 3 45 28 AOE 1 | . . . 1 Damage Taken 1205 | . 28 489 688 Core 261 | . . 63 198 Absorbed by Shields . | . . . . Redirected to Shielding 6 | . . . 6 Ignored by Resistances 13 | . . . 13 Core Remaining (%) 100 | 100 . . . Volleys Fired 92 | 1 29 36 26 Largest 2 | 2 2 2 2 Hottest 155 | 40 120 40 155 Shots Fired 183 | 2 58 72 51 Gun 174 | 2 57 72 43 Cannon 1 | . . . 1 Launcher 7 | . . . 7 Special 1 | . 1 . . Kinetic 142 | 2 57 72 11 Thermal 34 | . 1 . 33 Explosive 7 | . . . 7 Electromagnetic . | . . . . Robot Hit Streak 15 | 1 9 12 15 Robot Miss Streak 2 | . 2 2 1 Penetration Max . | . . . . Secondary Targets 2 | . . 2 . Max Gunslinging Chain 1 | . . 1 . Shots Hit Robots 125 | 1 37 48 39 Core Hits 47 | 1 11 19 16 Critical Kills 1 | . 1 . . Critical Parts Destroyed 2 | . 1 1 . Critical Strikes 6 | . 2 2 2 Burn 2 | . . . 2 Destroy 4 | . 2 2 . Melee Attacks 4 | . . . 4 Impact 4 | . . . 4 Slashing . | . . . . Piercing . | . . . . Sneak Attacks . | . . . . Combat Hostiles . | . . . . Follow-up Attacks . | . . . . Damage Inflicted 1830 | 15 399 526 890 Guns 1296 | 11 378 493 414 Cannons 26 | . . . 26 Explosions 450 | . . . 450 Melee . | . . . . Ramming 58 | 4 21 33 . Kinetic 939 | 11 378 493 57 Thermal 383 | . . . 383 Explosive 450 | . . . 450 Electromagnetic . | . . . . Impact . | . . . . Slashing . | . . . . Piercing . | . . . . Highest Corruption . | . . . . Average Corruption . | . . . . Corruption Purged . | . . . . Corruption Blocked . | . . . . Overload Shots . | . . . . Overflow Damage 5 | . . . 5 Projectiles . | . . . . Explosions 5 | . . . 5 Melee . | . . . . Knockbacks . | . . . . Impact . | . . . . Kinetic . | . . . . Secondary . | . . . . Self-Inflicted Damage . | . . . . Shots . | . . . . Rammed 12 | 1 5 6 . Targets Rammed 15 | 2 5 8 . Kicked . | . . . . Crushed 3 | 1 . 2 . Highest Temperature 36 | . 20 20 36 Average Temperature 11 | . 8 7 17 Received Heat Transfer 300 | . 12 141 147 Siege Activations . | . . . . Martial Activations . | . . . . Shielding Activations . | . . . . Robots Disrupted . | . . . . Combat Hostiles . | . . . . Robots Corrupted . | . . . . Combat Hostiles . | . . . . Parts Fried . | . . . . Impact Corruptions . | . . . . Robots Melted . | . . . . Combat Hostiles . | . . . . Parts Melted 4 | . . . 4 Heat Transferred 1036 | . . . 1036 Parts Sabotaged . | . . . . Parts Stolen . | . . . . Parts Stripped . | . . . . Power Chain Reactions . | . . . . Alert | -11 -10 -10 -10 ------- Run | Yrd Mat Min Sub Maximum Alert Level . | . . . . Low Security (%) 100 | 100 100 100 . Level 1 . | . . . . Level 2 . | . . . . Level 3 . | . . . . Level 4 . | . . . . Level 5 . | . . . . High Security . | . . . . Max Security . | . . . . Peak Influence 125 | 5 57 125 . Initial 12 | . . 12 . Average 20 | 1 6 34 . Influence Increases 470 | 10 125 295 40 Destroy 0b10 Robot/C 280 | . 40 200 40 Destroy 0b10 Robot/NC 35 | 10 20 5 . Destroy Leader 34 | . 4 30 . Successful Hack 14 | . 14 . . Destroy Structure 2 | . 2 . . Lose Combat Pursuer 105 | . 45 60 . Influence Decreases 470 | 10 92 328 40 Entered New Map 21 | . . 21 . Time Decay 439 | 10 92 297 40 Lost Part 10 | . . 10 . Squads Dispatched 1 | . 1 . . Investigation . | . . . . Extermination . | . . . . Reinforcement 1 | . 1 . . Assault . | . . . . Garrison . | . . . . Intercept . | . . . . Searches Triggered . | . . . . Construction Impeded . | . . . . Haulers Reinforced . | . . . . Active Scanning Responses . | . . . . Cargo Convoy Interrupts . | . . . . Stealth | -11 -10 -10 -10 --------- Run | Yrd Mat Min Sub Distress Signals 2 | . 2 . . Communications Jammed . | . . . . Distress Signals . | . . . . Times Spotted 36 | . 9 15 12 Peak Tracking Total 4 | . 3 4 2 Tactical Retreats 5 | . 1 4 . Traps | -11 -10 -10 -10 ------- Run | Yrd Mat Min Sub Traps Triggered 1 | . . . 1 Indirectly . | . . . . Trap Hack Attempts . | . . . . Triggered . | . . . . Disarmed . | . . . . Reprogrammed . | . . . . Reused . | . . . . Traps Extracted . | . . . . Installed . | . . . . Triggered . | . . . . Machines | -11 -10 -10 -10 ---------- Run | Yrd Mat Min Sub Machines Disabled . | . . . . Max in Single Turn . | . . . . Machines Repaired . | . . . . Machines Dismantled . | . . . . Machines Sabotaged . | . . . . Overloaded Fab Kills . | . . . . Hacking | -11 -10 -10 -10 --------- Run | Yrd Mat Min Sub Machines Accessed 5 | . 4 1 . Terminals 5 | . 4 1 . Fabricators . | . . . . Repair Stations . | . . . . Recycling Units . | . . . . Scanalyzers . | . . . . Garrison Access . | . . . . Total Hacks 13 | . 11 2 . Successful 3 | . 3 . . Failed 10 | . 8 2 . Catastrophic 3 | . 2 1 . Database Lockouts . | . . . . Manual 11 | . 9 2 . Terminals 13 | . 11 2 . Fabricators . | . . . . Repair Stations . | . . . . Recycling Units . | . . . . Scanalyzers . | . . . . Garrison Access . | . . . . Terminal Hacks 1 | . 1 . . Terminal Index 1 | . 1 . . Fabricator Hacks . | . . . . Repair Station Hacks . | . . . . Recycling Unit Hacks . | . . . . Scanalyzer . | . . . . Garrison Access Hacks . | . . . . Unauthorized Hacks 2 | . 2 . . Terminals 2 | . 2 . . Botnet 1 | . 1 . . Skim 1 | . 1 . . Fabricators . | . . . . Repair Stations . | . . . . Recycling Units . | . . . . Scanalyzers . | . . . . Garrison Access . | . . . . Data Cores Recovered . | . . . . Used . | . . . . Hacking Detections 5 | . 4 1 . Full Trace Events . | . . . . Feedback Events . | . . . . Feedback Blocked . | . . . . Robot Schematics Acquired . | . . . . Robots Built . | . . . . Authchips . | . . . . Time . | . . . . Total Robot Build Rating . | . . . . Part Schematics Acquired . | . . . . Parts Built . | . . . . Authchips . | . . . . Time . | . . . . Total Part Build Rating . | . . . . Part Studies Acquired . | . . . . Parts Repaired . | . . . . Time . | . . . . Parts Recycled . | . . . . Recycled Matter . | . . . . Retrieved Matter . | . . . . Retrieved Components . | . . . . Parts Scanalyzed . | . . . . Part Schematics Acquired . | . . . . Parts Damaged . | . . . . Bothacking | -11 -10 -10 -10 ------------ Run | Yrd Mat Min Sub Used RIF Installer . | . . . . Robots Hacked . | . . . . Non-combat . | . . . . Combat . | . . . . Robot Hacks Applied . | . . . . Relay Couplers Released . | . . . . Fabnet Peak Effective % . | . . . . Robots Rewired . | . . . . Allies Hacked . | . . . . Hacks Repelled . | . . . . Allies | -11 -10 -10 -10 -------- Run | Yrd Mat Min Sub Total Allies . | . . . . Largest Group . | . . . . Highest-Rated Group . | . . . . Highest-Rated Ally . | . . . . Total Orders . | . . . . Ally Attacks . | . . . . Total Damage . | . . . . Kills . | . . . . Allies Corrupted . | . . . . Allies Melted . | . . . . Intel | -11 -10 -10 -10 ------- Run | Yrd Mat Min Sub Active Infowar (turns) 268 | . . . 268 Structural 268 | . . . 268 Robot Analysis Total . | . . . . Derelict Logs Recovered 2 | . . 1 1 Drone Launches . | . . . . Drone Recoveries . | . . . . Exploration | -11 -10 -10 -10 ------------- Run | Yrd Mat Min Sub Turns Passed 2860 | 99 871 1032 858 Spaces Moved 1531 | 52 472 557 450 Core 3 | 3 . . . Treads 1528 | 49 472 557 450 Legs . | . . . . Wheels . | . . . . Hover . | . . . . Flight . | . . . . Fastest Speed 50 | 50 160 160 160 Average Speed 159 | 153 160 160 160 Slowest Speed 240 | 160 160 160 240 Overloaded Moves . | . . . . Propulsion Burnouts . | . . . . Robots Hopped . | . . . . Potential Cave-ins . | . . . . Cave-ins Triggered . | . . . . Exploration Rate (%) 51 | 5 64 98 37 Regions Visited 3 Branch Regions 2 Pre-discovered Areas . | . . . . Known Exits Taken 1 | . 1 . . Unknown Exits Taken 2 | 1 . 1 . Scrap Searched 4 | . . 1 3 Spaces Dug 1 | . 1 . . Terrain Destroyed 34 | . 1 . 33 Melee . | . . . . Projectile 1 | . 1 . . AOE 33 | . . . 33 Terrain Rammed . | . . . . Walls Destroyed . | . . . . Machines Disabled . | . . . . Actions | -11 -10 -10 -10 --------- Run | Yrd Mat Min Sub Total 1761 | 65 529 635 532 Wait 31 | . 4 12 15 Move 1528 | 51 471 556 450 Hop . | . . . . Pick Up 31 | 5 11 7 8 Fast Attach 8 | 6 1 . 1 Attach 5 | . . 1 4 Detach . | . . . . Swap 28 | . 5 6 17 Drop 19 | . 3 9 7 Fire 92 | 1 29 36 26 Melee 4 | . . . 4 Ram . | . . . . Kick . | . . . . Crush 15 | 2 5 8 . Escape Stasis . | . . . . Rewire . | . . . . Trap . | . . . . Miscellaneous . | . . . . Route ------- -11/Scrapyard -10/Materials (discovered 4 exits: *Mat x2 / *Min / [*Sub]) -10/Mines (discovered 3 exits: *Mat x2 / [*Sub]) -10/Subcaves History --------- Turn | Location | Event 43 | -11/Scrapyard | Discovered new exit (range 15) 100 | -11/Scrapyard | Entered Materials 316 | -10/Materials | Build established: Mutant 323 | -10/Materials | Discovered new exit (range 11) 571 | -10/Materials | Discovered new exit (range 12) 760 | -10/Materials | Discovered new exit (range 9) 788 | -10/Materials | Discovered new exit (range 9) 969 | -10/Materials | Identified exit to Mines 971 | -10/Materials | Entered Mines 972 | -10/Mines | Met a Derelict bent on vengeance 1021 | -10/Mines | A weapon hastily lodged in a ceiling crevice suddenly fell to the ground 1076 | -10/Mines | Discovered new exit (range 8) 1204 | -10/Mines | Discovered new exit (range 6) 1211 | -10/Mines | Identified exit to Materials 1387 | -10/Mines | Discovered exit to Materials (range 7) 1413 | -10/Mines | Learned 8 Materials zone layouts 1622 | -10/Mines | Received a Rocket Launcher from a helpful Derelict 1850 | -10/Mines | Joined a pair of Derelicts in attacking an 0b10 outpost 2003 | -10/Mines | Entered Subcaves 2004 | -10/Subcaves | Approached by a straggling Scientist 2379 | -10/Subcaves | Core integrity fell below 50% 2638 | -10/Subcaves | Shifting Twisted Machinery released Sub. Laser 2735 | -10/Subcaves | Learned location of 1 exit from Materials 2739 | -10/Subcaves | Shifting Twisted Machinery released Barrage Gun 2749 | -10/Subcaves | Core integrity fell below 20% 2861 | -10/Subcaves | Destroyed by 1H-WC2(R) with Subdweller Machine Gun Last Messages --------------- 02733_ Acquired Mak. Light Armor Plating. 02735_ Acquired derelict log, extracted data. Data stored: Materials exits (x1). Barrage Gun falls loose from the Twisted Machinery. 02745_ Dropped Hvy. Assault Rifle. 02745_ Acquired Barrage Gun. 02748_ Triggered Shrapnel Trap. 02748_ An expanding cloud of shrapnel blasts out in all directions. 02748_ Lgt. Treads destroyed. 02758_ Dropped Wheel. 02759_ Acquired Scrap Shield. DV-VIE(c): "I think it's somewhere west of here" 02809_ Dropped Sub. Machine Gun. 02809_ Acquired Battle Rifle. DV-VIE(c): "I think it's somewhere west of here" 02831_ A7-PZQ(z): "She is not going to be happy we haven't found any suitable candidates yet." Map ----- +----------------------------------------------------+ | ?????????????????????????????????????????????????? | | ?????????????????????????????????????????????????? | | ?????????????????????????????????????????????????? | | ?????????????????????????????????????????????????? | | ????????????????????????????????????????##?????### | | ??????????????????????????????????????### ##?## # | | ??????????????????????????????????????# ### | | ????????????????????????????????????### | | ????????????????????????????????????# # | | ????????????????????????????????????# # | | ?????????????????????????????????????# # | | ????????????????????????????##???????# # | | ??????????????????????????## ##????###?# # | | ??????????????????????????# #???## #?# ## # # | | ??????????????????????????# #?### #?##### #? | | ??????????????????????????# ### ###??# ## | | ?????????????????????????## #?# ##?#"" | | ?????????????????????????# #### #?# " # | | ???????????????????????### ### ####" # | | ???????????????????????# [ ### | | ???????????????????????## ## #### | | ????????????????????????## ] ### ##" | | ?????????????????????????# ## #### #### | | ????????????????# ??????# #####?# ""#??## | | ?????????????????# ### #?????# """" ## | | ????????????????????# R @ #?????# ""##"" ### | | ????????????????????# R #?????##""" ##"""" #?# | | ???????????????????# ###??????## """""" ""#?# | | ???????????????????## ##?????????##" "" ""?# | | ??????????????????? ###?????????????# ??? " ""? | | ?????????????????? # ????????????????#""???##" "" | | ?????????????????#?# ?????????????????? ???##" " | | ??????????????????? ???????????????????????# " | | ?????????????????? ????????????????????????# "" | | ?????????????????#??????????????????????????# # | | ????????????????????????????????????????????##?#" | | ??????????????????????????????????????????????# " | | ??????????????????????????????????????????????##" | | ??????????????????????????????????????????????# "" | | ????????????????????????????????????????????? " | | ????????????????????????????????????????????? " | | ?????????????????????????????????????????????? ?? | | ?????????????????????????????????????????????????? | | ?????????????????????????????????????????????????? | | ?????????????????????????????????????????????????? | | ?????????????????????????????????????????????????? | | ?????????????????????????????????????????????????? | | ?????????????????????????????????????????????????? | | ?????????????????????????????????????????????????? | | ?????????????????????????????????????????????????? | +----------------------------------------------------+ Best States ------------- Heat Dissipation 25 Energy Generation 15 Energy Capacity 250 Matter Stores 300 Matter Capacity 300 Sight Range 16 Terrain Scan Density 10 Armor Coverage 100 Resistance: KI 10 Propulsion Shielding 33 Utility Shielding 33 Evasion (%) 40 Recoil Reduction 2 Item Schematics ----------------- None Robot Schematics ------------------ None Fabricated ------------ Nothing Repaired ---------- Nothing Studied --------- None Alien Tech Used ----------------- None Achievements -------------- None Challenges ------------ None Game ------ Seed ElectronLargeDissipator Manual? 0 Play Time 00:15:41 Cumulative 134.7 hours Start 2025.12.02 @ 16:33:45 End 2025.12.02 @ 16:52:41 Sessions 1 Manual Loads 0 Difficulty Rogue Special Mode None Game No. 336 Rogue 334 Adventurer 2 Explorer 0 Win Type - Total 1 Types 1/0/0/0/0/0/0/0/0/0 Lore% 80 Gallery% 63 Achievement% 42 Wizard Run 0 Options --------- Layout 2 ASCII 0 Keyboard 0 Movement Numpad Keybinds 0 Fullscreen 2 Font 24/Smallcaps Map View 50x44 Zoom Use 0% Tactical HUD 1 Map Filters NONE Filters NONE Steam 1 RUN: 4ec8485e-7f72-442b-a1ab-148e5d7d4088